{"text_format":"1","workbook":"xlsx","n_sheets":3,"sheets":["Список складських запасів","Відбірний список запасів","Добір ящика"],"not_rendered":{"charts":0,"images":0,"macros":1,"external_links":0,"defined_names":8,"comments":0,"pivot_tables":0},"unopened":[],"bounds":{"document_bytes":16777216,"sheet_cells":100000,"rows_first":2000,"rows_last":500,"rows_between":2000,"halvings":0,"cell_chars":16384,"cell_head_chars":4096},"cells_cut":0,"cells_raw":0,"read":"whole","date_system":"1900"}

{"sheet":"Список складських запасів","index":0,"n_rows":15,"n_cols":11,"rows_kept":15,"cut":false,"hidden":false,"merged":[]}
[null,"СПИСОК СКЛАДСЬКИХ ЗАПАСІВ"]
[null,"ЗАГАЛЬНА ВАРТІСТЬ ЗАПАСІВ:","ТОВАРИ В ЗАПАСАХ:","К-СТЬ ЯЩИКІВ:","ВІДБІРНИЙ СПИСОК ЗАПАСІВ","ДОБІР ЯЩИКА"]
[null,{"$f":"SUM(Список_Запасів[ВАРТІСТЬ ЗАПАСІВ])","v":4649},{"$f":"COUNTA(Список_Запасів[ОПИС])","v":11},{"$f":"SUMPRODUCT((1/COUNTIF(Список_Запасів[ЯЩИК №],Список_Запасів[ЯЩИК №]&\"\")))","v":6}]
[null,"Артикул","ОПИС","ЯЩИК №","РОЗТАШУВАННЯ","ОД. ВИМІРЮВАННЯ","К-ТЬ","К-ТЬ ПОПОВНЕННЯ","ЦІНА","ВАРТІСТЬ ЗАПАСІВ","ПОПОВНЕННЯ"]
[null,"SP7875","Товар 1","T345",{"$f":"IFERROR(VLOOKUP(Список_Запасів[[#This Row],[ЯЩИК №]],'Добір ящика'!$B$5:$G$11,3,FALSE),\"\")","v":"Ряд 2, полиця 1"},"Штуки",20,10,30,{"$f":"Список_Запасів[[#This Row],[К-ТЬ]]*Список_Запасів[[#This Row],[ЦІНА]]","v":600},{"$f":"IFERROR(IF(Список_Запасів[[#This Row],[К-ТЬ]]<=Список_Запасів[[#This Row],[К-ТЬ ПОПОВНЕННЯ]],1,0),0)","v":0}]
[null,"TR87680","Товар 2","T345",{"$f":"IFERROR(VLOOKUP(Список_Запасів[[#This Row],[ЯЩИК №]],'Добір ящика'!$B$5:$G$11,3,FALSE),\"\")","v":"Ряд 2, полиця 1"},"Штуки",30,15,40,{"$f":"Список_Запасів[[#This Row],[К-ТЬ]]*Список_Запасів[[#This Row],[ЦІНА]]","v":1200},{"$f":"IFERROR(IF(Список_Запасів[[#This Row],[К-ТЬ]]<=Список_Запасів[[#This Row],[К-ТЬ ПОПОВНЕННЯ]],1,0),0)","v":0}]
[null,"MK676554","Товар 3","T5789",{"$f":"IFERROR(VLOOKUP(Список_Запасів[[#This Row],[ЯЩИК №]],'Добір ящика'!$B$5:$G$11,3,FALSE),\"\")","v":"Ряд 1, полиця 1"},"Штуки",10,5,5,{"$f":"Список_Запасів[[#This Row],[К-ТЬ]]*Список_Запасів[[#This Row],[ЦІНА]]","v":50},{"$f":"IFERROR(IF(Список_Запасів[[#This Row],[К-ТЬ]]<=Список_Запасів[[#This Row],[К-ТЬ ПОПОВНЕННЯ]],1,0),0)","v":0}]
[null,"YE98767","Товар 4","T9876",{"$f":"IFERROR(VLOOKUP(Список_Запасів[[#This Row],[ЯЩИК №]],'Добір ящика'!$B$5:$G$11,3,FALSE),\"\")","v":"Ряд 3, полиця 2"},"Коробка (10 шт.)",40,10,15,{"$f":"Список_Запасів[[#This Row],[К-ТЬ]]*Список_Запасів[[#This Row],[ЦІНА]]","v":600},{"$f":"IFERROR(IF(Список_Запасів[[#This Row],[К-ТЬ]]<=Список_Запасів[[#This Row],[К-ТЬ ПОПОВНЕННЯ]],1,0),0)","v":0}]
[null,"XR23423","Товар 5","T098",{"$f":"IFERROR(VLOOKUP(Список_Запасів[[#This Row],[ЯЩИК №]],'Добір ящика'!$B$5:$G$11,3,FALSE),\"\")","v":"Ряд 3, полиця 1"},"Штуки",12,10,26,{"$f":"Список_Запасів[[#This Row],[К-ТЬ]]*Список_Запасів[[#This Row],[ЦІНА]]","v":312},{"$f":"IFERROR(IF(Список_Запасів[[#This Row],[К-ТЬ]]<=Список_Запасів[[#This Row],[К-ТЬ ПОПОВНЕННЯ]],1,0),0)","v":0}]
[null,"PW98762","Товар 6","T345",{"$f":"IFERROR(VLOOKUP(Список_Запасів[[#This Row],[ЯЩИК №]],'Добір ящика'!$B$5:$G$11,3,FALSE),\"\")","v":"Ряд 2, полиця 1"},"Штуки",7,10,50,{"$f":"Список_Запасів[[#This Row],[К-ТЬ]]*Список_Запасів[[#This Row],[ЦІНА]]","v":350},{"$f":"IFERROR(IF(Список_Запасів[[#This Row],[К-ТЬ]]<=Список_Запасів[[#This Row],[К-ТЬ ПОПОВНЕННЯ]],1,0),0)","v":1}]
[null,"BM87684","Товар 7","T349",{"$f":"IFERROR(VLOOKUP(Список_Запасів[[#This Row],[ЯЩИК №]],'Добір ящика'!$B$5:$G$11,3,FALSE),\"\")","v":"Ряд 1, полиця 2"},"Штуки",10,5,10,{"$f":"Список_Запасів[[#This Row],[К-ТЬ]]*Список_Запасів[[#This Row],[ЦІНА]]","v":100},{"$f":"IFERROR(IF(Список_Запасів[[#This Row],[К-ТЬ]]<=Список_Запасів[[#This Row],[К-ТЬ ПОПОВНЕННЯ]],1,0),0)","v":0}]
[null,"BH67655","Товар 8","T5789",{"$f":"IFERROR(VLOOKUP(Список_Запасів[[#This Row],[ЯЩИК №]],'Добір ящика'!$B$5:$G$11,3,FALSE),\"\")","v":"Ряд 1, полиця 1"},"Штуки",19,10,3,{"$f":"Список_Запасів[[#This Row],[К-ТЬ]]*Список_Запасів[[#This Row],[ЦІНА]]","v":57},{"$f":"IFERROR(IF(Список_Запасів[[#This Row],[К-ТЬ]]<=Список_Запасів[[#This Row],[К-ТЬ ПОПОВНЕННЯ]],1,0),0)","v":0}]
[null,"WT98768","Товар 9","T9875",{"$f":"IFERROR(VLOOKUP(Список_Запасів[[#This Row],[ЯЩИК №]],'Добір ящика'!$B$5:$G$11,3,FALSE),\"\")","v":"Ряд 2, полиця 2"},"Пакет (5 шт.)",20,30,14,{"$f":"Список_Запасів[[#This Row],[К-ТЬ]]*Список_Запасів[[#This Row],[ЦІНА]]","v":280},{"$f":"IFERROR(IF(Список_Запасів[[#This Row],[К-ТЬ]]<=Список_Запасів[[#This Row],[К-ТЬ ПОПОВНЕННЯ]],1,0),0)","v":1}]
[null,"TS3456","Товар 10","T349",{"$f":"IFERROR(VLOOKUP(Список_Запасів[[#This Row],[ЯЩИК №]],'Добір ящика'!$B$5:$G$11,3,FALSE),\"\")","v":"Ряд 1, полиця 2"},"Штуки",15,8,60,{"$f":"Список_Запасів[[#This Row],[К-ТЬ]]*Список_Запасів[[#This Row],[ЦІНА]]","v":900},{"$f":"IFERROR(IF(Список_Запасів[[#This Row],[К-ТЬ]]<=Список_Запасів[[#This Row],[К-ТЬ ПОПОВНЕННЯ]],1,0),0)","v":0}]
[null,"WDG123","Товар 11","T349",{"$f":"IFERROR(VLOOKUP(Список_Запасів[[#This Row],[ЯЩИК №]],'Добір ящика'!$B$5:$G$11,3,FALSE),\"\")","v":"Ряд 1, полиця 2"},"Штуки",25,15,8,{"$f":"Список_Запасів[[#This Row],[К-ТЬ]]*Список_Запасів[[#This Row],[ЦІНА]]","v":200},{"$f":"IFERROR(IF(Список_Запасів[[#This Row],[К-ТЬ]]<=Список_Запасів[[#This Row],[К-ТЬ ПОПОВНЕННЯ]],1,0),0)","v":0}]

{"sheet":"Відбірний список запасів","index":1,"n_rows":9,"n_cols":9,"rows_kept":9,"cut":false,"hidden":false,"merged":[]}
[null,"ВІДБІРНИЙ СПИСОК ЗАПАСІВ"]
[null,null,"СПИСОК ЗАПАСІВ"]
[]
[null,"ЗАМОВЛЕННЯ №","Артикул","ВИБРАНА К-СТЬ","ДОСТУПНА К-СТЬ","ОПИС ТОВАРУ","ОД. ВИМІРЮВАННЯ","ЯЩИК №","РОЗТАШУВАННЯ"]
[null,"TP001-1","SP7875",3,{"$f":"IFERROR(VLOOKUP(InventoryPickList[Артикул],Список_Запасів[],6,FALSE),\"\")","v":20},{"$f":"IFERROR(VLOOKUP(InventoryPickList[Артикул],Список_Запасів[],2,FALSE),\"\")","v":"Товар 1"},{"$f":"IFERROR(VLOOKUP(InventoryPickList[Артикул],Список_Запасів[],5,FALSE),\"\")","v":"Штуки"},{"$f":"IFERROR(VLOOKUP(InventoryPickList[Артикул],Список_Запасів[],3,FALSE),\"\")","v":"T345"},{"$f":"IFERROR(VLOOKUP(InventoryPickList[Артикул],Список_Запасів[],4,FALSE),\"\")","v":"Ряд 2, полиця 1"}]
[null,"TP001-1","YE98767",1,{"$f":"IFERROR(VLOOKUP(InventoryPickList[Артикул],Список_Запасів[],6,FALSE),\"\")","v":40},{"$f":"IFERROR(VLOOKUP(InventoryPickList[Артикул],Список_Запасів[],2,FALSE),\"\")","v":"Товар 4"},{"$f":"IFERROR(VLOOKUP(InventoryPickList[Артикул],Список_Запасів[],5,FALSE),\"\")","v":"Коробка (10 шт.)"},{"$f":"IFERROR(VLOOKUP(InventoryPickList[Артикул],Список_Запасів[],3,FALSE),\"\")","v":"T9876"},{"$f":"IFERROR(VLOOKUP(InventoryPickList[Артикул],Список_Запасів[],4,FALSE),\"\")","v":"Ряд 3, полиця 2"}]
[null,"TP001-1","BM87684",2,{"$f":"IFERROR(VLOOKUP(InventoryPickList[Артикул],Список_Запасів[],6,FALSE),\"\")","v":10},{"$f":"IFERROR(VLOOKUP(InventoryPickList[Артикул],Список_Запасів[],2,FALSE),\"\")","v":"Товар 7"},{"$f":"IFERROR(VLOOKUP(InventoryPickList[Артикул],Список_Запасів[],5,FALSE),\"\")","v":"Штуки"},{"$f":"IFERROR(VLOOKUP(InventoryPickList[Артикул],Список_Запасів[],3,FALSE),\"\")","v":"T349"},{"$f":"IFERROR(VLOOKUP(InventoryPickList[Артикул],Список_Запасів[],4,FALSE),\"\")","v":"Ряд 1, полиця 2"}]
[null,"TP001-1","TS3456",6,{"$f":"IFERROR(VLOOKUP(InventoryPickList[Артикул],Список_Запасів[],6,FALSE),\"\")","v":15},{"$f":"IFERROR(VLOOKUP(InventoryPickList[Артикул],Список_Запасів[],2,FALSE),\"\")","v":"Товар 10"},{"$f":"IFERROR(VLOOKUP(InventoryPickList[Артикул],Список_Запасів[],5,FALSE),\"\")","v":"Штуки"},{"$f":"IFERROR(VLOOKUP(InventoryPickList[Артикул],Список_Запасів[],3,FALSE),\"\")","v":"T349"},{"$f":"IFERROR(VLOOKUP(InventoryPickList[Артикул],Список_Запасів[],4,FALSE),\"\")","v":"Ряд 1, полиця 2"}]
[null,"TP001-1","MK676554",3,{"$f":"IFERROR(VLOOKUP(InventoryPickList[Артикул],Список_Запасів[],6,FALSE),\"\")","v":10},{"$f":"IFERROR(VLOOKUP(InventoryPickList[Артикул],Список_Запасів[],2,FALSE),\"\")","v":"Товар 3"},{"$f":"IFERROR(VLOOKUP(InventoryPickList[Артикул],Список_Запасів[],5,FALSE),\"\")","v":"Штуки"},{"$f":"IFERROR(VLOOKUP(InventoryPickList[Артикул],Список_Запасів[],3,FALSE),\"\")","v":"T5789"},{"$f":"IFERROR(VLOOKUP(InventoryPickList[Артикул],Список_Запасів[],4,FALSE),\"\")","v":"Ряд 1, полиця 1"}]

{"sheet":"Добір ящика","index":2,"n_rows":11,"n_cols":7,"rows_kept":11,"cut":false,"hidden":false,"merged":[]}
[null,"ДОБІР ЯЩИКА"]
[null,"СПИСОК ЗАПАСІВ"]
[]
[null,"ЯЩИК №","ОПИС","РОЗТАШУВАННЯ","ШИРИНА","ВИСОТА","ДОВЖИНА"]
[null,"T345","Великий ящик","Ряд 2, полиця 1",50,10,10]
[null,"T5789","Малий ящик","Ряд 1, полиця 1",25,5,5]
[null,"T9876","Великий ящик","Ряд 3, полиця 2",50,10,10]
[null,"T098","Середній ящик","Ряд 3, полиця 1",30,7,10]
[null,"T349","Малий ящик","Ряд 1, полиця 2",25,5,5]
[null,"T5789","Великий ящик","Ряд 4, полиця 5",50,10,10]
[null,"T9875","Великий ящик","Ряд 2, полиця 2",50,10,10]